[Event "Titled Tuesday Blitz June 21 Early 2022"]
[White "Papp, Levente"]
[Black "Livaic, Leon"]
[WhiteFideId "751243"]
[BlackFideId "14531534"]
[WhiteElo "2308"]
[BlackElo "2540"]
[Result "0-1"]
[Round "02"]
[TimeControl "180+1"]
[Date "2022.06.21"]
[WhiteClock "0:00:06"]
[BlackClock "0:00:32"]

1. Nf3 {[%clk 0:03:00]}  Nf6 {[%clk 0:03:00]} 2. g3 {[%clk 0:03:00]}  d5 {[%clk 0:02:58]} 3. Bg2 {[%clk 0:03:00]}  e6 {[%clk 0:02:59]} 4. O-O {[%clk 0:03:00]}  Be7 {[%clk 0:03:00]} 5. c4 {[%clk 0:03:00]}  O-O {[%clk 0:03:00]} 6. b3 {[%clk 0:03:01]}  b6 {[%clk 0:02:58]} 7. Bb2 {[%clk 0:03:00]}  Bb7 {[%clk 0:02:58]} 8. e3 {[%clk 0:03:00]}  Nbd7 {[%clk 0:02:58]} 9. Nc3 {[%clk 0:02:59]}  dxc4 {[%clk 0:02:56]} 10. bxc4 {[%clk 0:02:59]}  c5 {[%clk 0:02:56]} 11. Qe2 {[%clk 0:02:48]}  a6 {[%clk 0:02:52]} 12. Rfd1 {[%clk 0:02:40]}  Qc7 {[%clk 0:02:52]} 13. Rac1 {[%clk 0:02:38]}  Rac8 {[%clk 0:02:50]} 14. Ne1 {[%clk 0:02:21]}  Bxg2 {[%clk 0:02:49]} 15. Nxg2 {[%clk 0:02:21]}  Ne8 {[%clk 0:02:46]} 16. g4 {[%clk 0:02:10]}  Nd6 {[%clk 0:02:46]} 17. d3 {[%clk 0:02:04]}  Qb7 {[%clk 0:02:46]} 18. f4 {[%clk 0:01:59]}  b5 {[%clk 0:02:46]} 19. Ba1 {[%clk 0:01:42]}  b4 {[%clk 0:02:21]} 20. Nb1 {[%clk 0:01:10]}  Bf6 {[%clk 0:02:20]} 21. Bxf6 {[%clk 0:01:08]}  Nxf6 {[%clk 0:02:21]} 22. g5 {[%clk 0:01:08]}  Nd7 {[%clk 0:02:21]} 23. Nd2 {[%clk 0:01:08]}  Nf5 {[%clk 0:02:10]} 24. Nf3 {[%clk 0:01:04]}  a5 {[%clk 0:02:09]} 25. Rb1 {[%clk 0:00:52]}  a4 {[%clk 0:02:09]} 26. h4 {[%clk 0:00:51]}  Rfe8 {[%clk 0:02:01]} 27. e4 {[%clk 0:00:47]}  Nd4 {[%clk 0:02:01]} 28. Nxd4 {[%clk 0:00:47]}  cxd4 {[%clk 0:02:02]} 29. h5 {[%clk 0:00:36]}  Rb8 {[%clk 0:01:52]} 30. g6 {[%clk 0:00:36]}  Nc5 {[%clk 0:01:51]} 31. gxh7+ {[%clk 0:00:35]}  Kxh7 {[%clk 0:01:51]} 32. Kf2 {[%clk 0:00:31]}  b3 {[%clk 0:01:45]} 33. Rg1 {[%clk 0:00:28]}  Qe7 {[%clk 0:01:38]} 34. axb3 {[%clk 0:00:19]}  Rxb3 {[%clk 0:01:38]} 35. Rxb3 {[%clk 0:00:14]}  axb3 {[%clk 0:01:39]} 36. Kg3 {[%clk 0:00:08]}  Rb8 {[%clk 0:01:37]} 37. Rb1 {[%clk 0:00:08]}  e5 {[%clk 0:01:35]} 38. Qg4 {[%clk 0:00:06]}  Nxd3 {[%clk 0:01:31]} 39. Qf5+ {[%clk 0:00:05]}  Kh8 {[%clk 0:01:31]} 40. h6 {[%clk 0:00:03]}  g6 {[%clk 0:01:27]} 41. Qg4 {[%clk 0:00:04]}  exf4+ {[%clk 0:01:13]} 42. Nxf4 {[%clk 0:00:05]}  Qe5 {[%clk 0:01:13]} 43. Kf3 {[%clk 0:00:05]}  Nxf4 {[%clk 0:00:57]} 44. Qxf4 {[%clk 0:00:05]}  f6 {[%clk 0:00:52]} 45. c5 {[%clk 0:00:04]}  Kh7 {[%clk 0:00:48]} 46. c6 {[%clk 0:00:04]}  Qxf4+ {[%clk 0:00:44]} 47. Kxf4 {[%clk 0:00:04]}  Kxh6 {[%clk 0:00:45]} 48. e5 {[%clk 0:00:03]}  fxe5+ {[%clk 0:00:44]} 49. Kxe5 {[%clk 0:00:04]}  d3 {[%clk 0:00:45]} 50. Kd4 {[%clk 0:00:05]}  d2 {[%clk 0:00:39]} 51. Kc3 {[%clk 0:00:05]}  Rd8 {[%clk 0:00:32]} 52. Rd1 {[%clk 0:00:05]}  Rd6 {[%clk 0:00:31]} 53. Rxd2 {[%clk 0:00:02]}  Rxc6+ {[%clk 0:00:31]} 54. Kxb3 {[%clk 0:00:03]}  g5 {[%clk 0:00:32]} 55. Kb4 {[%clk 0:00:03]}  g4 {[%clk 0:00:32]} 56. Kb5 {[%clk 0:00:03]}  Rc1 {[%clk 0:00:32]} 57. Rd5 {[%clk 0:00:04]}  g3 {[%clk 0:00:32]} 58. Kb4 {[%clk 0:00:05]}  g2 {[%clk 0:00:32]} 59. Rd6+ {[%clk 0:00:06]}  Kg5 {[%clk 0:00:32]} 0-1


[Site "https://www.chess.com"]

[Event "Titled Tuesday Blitz June 21 Early 2022"]
[White "Parkhov, Yair"]
[Black "Lima, Kleyton Alcantara"]
[WhiteFideId "2813408"]
[BlackFideId "22718397"]
[WhiteElo "2206"]
[BlackElo "1951"]
[Result "1-0"]
[Round "02"]
[TimeControl "180+1"]
[Date "2022.06.22"]
[WhiteClock "0:01:24"]
[BlackClock "0:02:01"]

1. d4 {[%clk 0:02:59]}  Nf6 {[%clk 0:02:57]} 2. c4 {[%clk 0:02:59]}  e6 {[%clk 0:02:58]} 3. Nc3 {[%clk 0:02:54]}  Bb4 {[%clk 0:02:58]} 4. e3 {[%clk 0:02:44]}  b6 {[%clk 0:02:57]} 5. Nf3 {[%clk 0:02:34]}  O-O {[%clk 0:02:56]} 6. Bd3 {[%clk 0:02:34]}  Bb7 {[%clk 0:02:56]} 7. O-O {[%clk 0:02:33]}  d5 {[%clk 0:02:56]} 8. cxd5 {[%clk 0:02:29]}  exd5 {[%clk 0:02:57]} 9. Ne5 {[%clk 0:02:25]}  Nbd7 {[%clk 0:02:57]} 10. f4 {[%clk 0:02:25]}  c5 {[%clk 0:02:51]} 11. Ne2 {[%clk 0:02:10]}  Rc8 {[%clk 0:02:42]} 12. a3 {[%clk 0:02:07]}  Ba5 {[%clk 0:02:40]} 13. b4 {[%clk 0:02:07]}  cxb4 {[%clk 0:02:40]} 14. axb4 {[%clk 0:02:08]}  Bxb4 {[%clk 0:02:40]} 15. Rxa7 {[%clk 0:02:08]}  Qc7 {[%clk 0:02:34]} 16. Ng3 {[%clk 0:02:02]}  Qb8 {[%clk 0:02:31]} 17. Qa4 {[%clk 0:01:47]}  Nxe5 {[%clk 0:02:18]} 18. fxe5 {[%clk 0:01:40]}  Ne4 {[%clk 0:02:18]} 19. Bxe4 {[%clk 0:01:31]}  dxe4 {[%clk 0:02:19]} 20. Rxb7 {[%clk 0:01:31]}  Qxb7 {[%clk 0:02:19]} 21. Qxb4 {[%clk 0:01:31]}  Qc6 {[%clk 0:02:13]} 22. Nf5 {[%clk 0:01:30]}  Qc4 {[%clk 0:02:01]} 23. Ba3 {[%clk 0:01:24]} 1-0


[Site "https://www.chess.com"]

[Event "Titled Tuesday Blitz June 21 Early 2022"]
[White "Perez Gormaz, Matias"]
[Black "Petrova, Irina"]
[WhiteFideId "3406342"]
[BlackFideId "14124122"]
[WhiteElo "2341"]
[BlackElo "1993"]
[Result "1-0"]
[Round "02"]
[TimeControl "180+1"]
[Date "2022.06.22"]
[WhiteClock "0:00:15"]
[BlackClock "0:00:08"]

1. e4 {[%clk 0:03:00]}  d6 {[%clk 0:03:00]} 2. c4 {[%clk 0:03:00]}  c5 {[%clk 0:02:52]} 3. Nc3 {[%clk 0:03:01]}  Nf6 {[%clk 0:02:50]} 4. g3 {[%clk 0:02:59]}  g6 {[%clk 0:02:48]} 5. Bg2 {[%clk 0:03:00]}  Bg7 {[%clk 0:02:48]} 6. Nge2 {[%clk 0:03:00]}  O-O {[%clk 0:02:48]} 7. O-O {[%clk 0:03:01]}  Nc6 {[%clk 0:02:47]} 8. d3 {[%clk 0:02:59]}  Rb8 {[%clk 0:02:46]} 9. h3 {[%clk 0:02:56]}  Bd7 {[%clk 0:02:45]} 10. Be3 {[%clk 0:02:55]}  a6 {[%clk 0:02:43]} 11. a4 {[%clk 0:02:46]}  Ne8 {[%clk 0:02:36]} 12. d4 {[%clk 0:02:44]}  cxd4 {[%clk 0:02:34]} 13. Nxd4 {[%clk 0:02:44]}  Nc7 {[%clk 0:02:34]} 14. Nde2 {[%clk 0:02:31]}  b5 {[%clk 0:02:30]} 15. axb5 {[%clk 0:01:10]}  axb5 {[%clk 0:02:31]} 16. c5 {[%clk 0:01:08]}  dxc5 {[%clk 0:02:19]} 17. Bxc5 {[%clk 0:01:08]}  b4 {[%clk 0:02:09]} 18. Nd5 {[%clk 0:00:59]}  Bxb2 {[%clk 0:01:57]} 19. Rb1 {[%clk 0:01:00]}  Bg7 {[%clk 0:01:56]} 20. Bb6 {[%clk 0:00:54]}  Rxb6 {[%clk 0:01:27]} 21. Nxb6 {[%clk 0:00:52]}  Be6 {[%clk 0:01:22]} 22. Nd5 {[%clk 0:00:53]}  Nb5 {[%clk 0:00:34]} 23. Qa4 {[%clk 0:00:35]}  Nbd4 {[%clk 0:00:25]} 24. Nxd4 {[%clk 0:00:32]}  Nxd4 {[%clk 0:00:26]} 25. Qxb4 {[%clk 0:00:28]}  Bxd5 {[%clk 0:00:24]} 26. exd5 {[%clk 0:00:28]}  Ne2+ {[%clk 0:00:19]} 27. Kh2 {[%clk 0:00:26]}  Nc3 {[%clk 0:00:20]} 28. Rbe1 {[%clk 0:00:18]}  Bf6 {[%clk 0:00:20]} 29. Qc4 {[%clk 0:00:15]}  Qd6 {[%clk 0:00:19]} 30. Re3 {[%clk 0:00:15]}  Rd8 {[%clk 0:00:09]} 31. Rxc3 {[%clk 0:00:15]}  Bxc3 {[%clk 0:00:10]} 32. Qxc3 {[%clk 0:00:16]}  e6 {[%clk 0:00:11]} 33. dxe6 {[%clk 0:00:14]}  Qxe6 {[%clk 0:00:12]} 34. Qe3 {[%clk 0:00:15]}  Qf6 {[%clk 0:00:12]} 35. Re1 {[%clk 0:00:15]}  Kg7 {[%clk 0:00:11]} 36. Qe5 {[%clk 0:00:14]}  Rd2 {[%clk 0:00:12]} 37. Qxf6+ {[%clk 0:00:15]}  Kxf6 {[%clk 0:00:13]} 38. Kg1 {[%clk 0:00:15]}  Rb2 {[%clk 0:00:13]} 39. h4 {[%clk 0:00:15]}  Kg7 {[%clk 0:00:13]} 40. Re3 {[%clk 0:00:16]}  h5 {[%clk 0:00:13]} 41. Bf3 {[%clk 0:00:16]}  Ra2 {[%clk 0:00:12]} 42. Kg2 {[%clk 0:00:17]}  Ra7 {[%clk 0:00:12]} 43. Rb3 {[%clk 0:00:17]}  Rc7 {[%clk 0:00:12]} 44. Rb7 {[%clk 0:00:17]}  Rc5 {[%clk 0:00:10]} 45. Rd7 {[%clk 0:00:18]}  Rf5 {[%clk 0:00:10]} 46. Bd5 {[%clk 0:00:18]}  Rf6 {[%clk 0:00:10]} 47. f4 {[%clk 0:00:18]}  Rf5 {[%clk 0:00:09]} 48. Kf3 {[%clk 0:00:18]}  Rf6 {[%clk 0:00:09]} 49. Ke4 {[%clk 0:00:18]}  Rf5 {[%clk 0:00:09]} 50. Rd6 {[%clk 0:00:18]}  Rf6 {[%clk 0:00:09]} 51. Rxf6 {[%clk 0:00:18]}  Kxf6 {[%clk 0:00:10]} 52. Bc4 {[%clk 0:00:18]}  Ke7 {[%clk 0:00:09]} 53. Ke5 {[%clk 0:00:17]}  f6+ {[%clk 0:00:10]} 54. Kd5 {[%clk 0:00:17]}  Kf7 {[%clk 0:00:10]} 55. Kd6+ {[%clk 0:00:17]}  Kg7 {[%clk 0:00:10]} 56. Ke7 {[%clk 0:00:17]}  g5 {[%clk 0:00:10]} 57. Be2 {[%clk 0:00:13]}  gxf4 {[%clk 0:00:08]} 58. gxf4 {[%clk 0:00:13]}  Kg6 {[%clk 0:00:08]} 59. Ke6 {[%clk 0:00:14]}  Kh6 {[%clk 0:00:07]} 60. Kxf6 {[%clk 0:00:13]}  Kh7 {[%clk 0:00:07]} 61. Bxh5 {[%clk 0:00:13]}  Kh6 {[%clk 0:00:08]} 62. Bg4 {[%clk 0:00:14]}  Kh7 {[%clk 0:00:08]} 63. Kg5 {[%clk 0:00:15]} 1-0


[Site "https://www.chess.com"]

[Event "Titled Tuesday Blitz June 21 Early 2022"]
[White "Pinheiro, Iung Alicio de O."]
[Black "Kosakowski, Jakub"]
[WhiteFideId "2104350"]
[BlackFideId "1185080"]
[WhiteElo "2283"]
[BlackElo "2476"]
[Result "0-1"]
[Round "02"]
[TimeControl "180+1"]
[Date "2022.06.21"]
[WhiteClock "0:00:06"]
[BlackClock "0:00:08"]

1. e4 {[%clk 0:03:00]}  e5 {[%clk 0:02:58]} 2. Bc4 {[%clk 0:02:59]}  Nf6 {[%clk 0:02:57]} 3. d3 {[%clk 0:02:58]}  c6 {[%clk 0:02:56]} 4. Nf3 {[%clk 0:02:58]}  Be7 {[%clk 0:02:56]} 5. O-O {[%clk 0:02:56]}  d6 {[%clk 0:02:56]} 6. Re1 {[%clk 0:02:46]}  O-O {[%clk 0:02:56]} 7. Bb3 {[%clk 0:02:45]}  Nbd7 {[%clk 0:02:56]} 8. a3 {[%clk 0:02:45]}  Nc5 {[%clk 0:02:48]} 9. Ba2 {[%clk 0:02:44]}  Bg4 {[%clk 0:02:48]} 10. Nbd2 {[%clk 0:02:43]}  Nfd7 {[%clk 0:02:48]} 11. h3 {[%clk 0:02:43]}  Bh5 {[%clk 0:02:48]} 12. Nf1 {[%clk 0:02:38]}  Bxf3 {[%clk 0:02:47]} 13. Qxf3 {[%clk 0:02:37]}  Bg5 {[%clk 0:02:48]} 14. Ne3 {[%clk 0:02:33]}  Ne6 {[%clk 0:02:48]} 15. c3 {[%clk 0:02:32]}  g6 {[%clk 0:02:46]} 16. Bd2 {[%clk 0:02:21]}  Ndc5 {[%clk 0:02:44]} 17. Nf1 {[%clk 0:01:49]}  Kg7 {[%clk 0:02:34]} 18. Rad1 {[%clk 0:01:46]}  Bxd2 {[%clk 0:02:04]} 19. Rxd2 {[%clk 0:01:37]}  Qb6 {[%clk 0:01:49]} 20. Red1 {[%clk 0:01:22]}  Nb3 {[%clk 0:01:44]} 21. Bxb3 {[%clk 0:01:15]}  Qxb3 {[%clk 0:01:45]} 22. d4 {[%clk 0:01:15]}  exd4 {[%clk 0:01:24]} 23. cxd4 {[%clk 0:00:50]}  Qxf3 {[%clk 0:01:24]} 24. gxf3 {[%clk 0:00:51]}  Nf4 {[%clk 0:01:25]} 25. h4 {[%clk 0:00:48]}  f5 {[%clk 0:01:18]} 26. e5 {[%clk 0:00:36]}  Rfe8 {[%clk 0:01:14]} 27. Ne3 {[%clk 0:00:33]}  dxe5 {[%clk 0:00:49]} 28. dxe5 {[%clk 0:00:33]}  Re7 {[%clk 0:00:49]} 29. Nc4 {[%clk 0:00:29]}  Rae8 {[%clk 0:00:48]} 30. Nd6 {[%clk 0:00:21]}  Rf8 {[%clk 0:00:48]} 31. Nc4 {[%clk 0:00:21]}  Nd5 {[%clk 0:00:38]} 32. Kg2 {[%clk 0:00:20]}  h6 {[%clk 0:00:33]} 33. Rd4 {[%clk 0:00:19]}  g5 {[%clk 0:00:33]} 34. h5 {[%clk 0:00:16]}  Nf4+ {[%clk 0:00:17]} 35. Rxf4 {[%clk 0:00:14]}  gxf4 {[%clk 0:00:17]} 36. Rd4 {[%clk 0:00:15]}  Kf7 {[%clk 0:00:17]} 37. Rxf4 {[%clk 0:00:15]}  Ke6 {[%clk 0:00:17]} 38. Rd4 {[%clk 0:00:16]}  Rd7 {[%clk 0:00:18]} 39. Rh4 {[%clk 0:00:13]}  Rg8+ {[%clk 0:00:16]} 40. Kf1 {[%clk 0:00:13]}  Rd5 {[%clk 0:00:13]} 41. Ke2 {[%clk 0:00:13]}  b5 {[%clk 0:00:12]} 42. Ne3 {[%clk 0:00:13]}  Rxe5 {[%clk 0:00:13]} 43. f4 {[%clk 0:00:14]}  Re4 {[%clk 0:00:13]} 44. Kf3 {[%clk 0:00:15]}  Rd8 {[%clk 0:00:12]} 45. Rh1 {[%clk 0:00:16]}  Rdd4 {[%clk 0:00:12]} 46. Ng2 {[%clk 0:00:15]}  Rd2 {[%clk 0:00:13]} 47. Ne3 {[%clk 0:00:13]}  Rxb2 {[%clk 0:00:12]} 48. Rg1 {[%clk 0:00:13]}  Rb3 {[%clk 0:00:09]} 49. Rg6+ {[%clk 0:00:14]}  Kd7 {[%clk 0:00:09]} 50. Rxh6 {[%clk 0:00:14]}  Rxa3 {[%clk 0:00:10]} 51. Rf6 {[%clk 0:00:14]}  Raa4 {[%clk 0:00:09]} 52. Rxf5 {[%clk 0:00:14]}  Re6 {[%clk 0:00:08]} 53. Rg5 {[%clk 0:00:13]}  b4 {[%clk 0:00:09]} 54. Nc4 {[%clk 0:00:10]}  b3 {[%clk 0:00:08]} 55. Ne5+ {[%clk 0:00:11]}  Rxe5 {[%clk 0:00:08]} 56. fxe5 {[%clk 0:00:11]}  b2 {[%clk 0:00:08]} 57. Rg7+ {[%clk 0:00:11]}  Kc8 {[%clk 0:00:07]} 58. Rg8+ {[%clk 0:00:11]}  Kb7 {[%clk 0:00:08]} 59. Rg7+ {[%clk 0:00:12]}  Ka6 {[%clk 0:00:08]} 60. h6 {[%clk 0:00:07]}  b1=Q {[%clk 0:00:08]} 61. h7 {[%clk 0:00:08]}  Qf5+ {[%clk 0:00:08]} 62. Kg2 {[%clk 0:00:07]}  Rg4+ {[%clk 0:00:08]} 63. Kf1 {[%clk 0:00:07]}  Qd3+ {[%clk 0:00:07]} 64. Ke1 {[%clk 0:00:06]}  Re4# {[%clk 0:00:08]} 0-1


[Site "https://www.chess.com"]

[Event "Titled Tuesday Blitz June 21 Early 2022"]
[White "Pranesh M"]
[Black "Barria Zuniga, Daniel"]
[WhiteFideId "35028600"]
[BlackFideId "3400816"]
[WhiteElo "1902"]
[BlackElo "2414"]
[Result "0-1"]
[Round "02"]
[TimeControl "180+1"]
[Date "2022.06.21"]
[WhiteClock "0:01:03"]
[BlackClock "0:00:19"]

1. e4 {[%clk 0:02:32]}  c5 {[%clk 0:02:49]} 2. Nf3 {[%clk 0:02:32]}  e6 {[%clk 0:02:49]} 3. d4 {[%clk 0:02:33]}  cxd4 {[%clk 0:02:50]} 4. Nxd4 {[%clk 0:02:34]}  a6 {[%clk 0:02:50]} 5. Nc3 {[%clk 0:02:34]}  Qc7 {[%clk 0:02:50]} 6. Bd3 {[%clk 0:02:32]}  Nf6 {[%clk 0:02:50]} 7. O-O {[%clk 0:02:32]}  d6 {[%clk 0:02:48]} 8. Bg5 {[%clk 0:02:30]}  Nbd7 {[%clk 0:02:45]} 9. Kh1 {[%clk 0:02:30]}  b5 {[%clk 0:02:42]} 10. a3 {[%clk 0:02:29]}  Bb7 {[%clk 0:02:42]} 11. f4 {[%clk 0:02:29]}  h6 {[%clk 0:02:42]} 12. Bh4 {[%clk 0:02:29]}  g5 {[%clk 0:02:41]} 13. fxg5 {[%clk 0:02:21]}  hxg5 {[%clk 0:02:42]} 14. Bxg5 {[%clk 0:02:22]}  Be7 {[%clk 0:02:40]} 15. Nf3 {[%clk 0:02:16]}  O-O-O {[%clk 0:02:35]} 16. Qe1 {[%clk 0:02:14]}  Rdg8 {[%clk 0:02:34]} 17. h3 {[%clk 0:02:11]}  Kd8 {[%clk 0:02:04]} 18. Rd1 {[%clk 0:02:10]}  Nh5 {[%clk 0:02:03]} 19. Bxe7+ {[%clk 0:02:08]}  Kxe7 {[%clk 0:02:04]} 20. Qh4+ {[%clk 0:02:01]}  Ndf6 {[%clk 0:01:55]} 21. Ng5 {[%clk 0:01:58]}  d5 {[%clk 0:01:52]} 22. Rf3 {[%clk 0:01:38]}  Rxg5 {[%clk 0:01:13]} 23. Qxg5 {[%clk 0:01:37]}  Rg8 {[%clk 0:01:13]} 24. Qh4 {[%clk 0:01:28]}  dxe4 {[%clk 0:01:12]} 25. Rxf6 {[%clk 0:01:16]}  Nxf6 {[%clk 0:01:06]} 26. Bxe4 {[%clk 0:01:14]}  Qc4 {[%clk 0:00:46]} 27. Rf1 {[%clk 0:01:11]}  Qxf1+ {[%clk 0:00:45]} 28. Kh2 {[%clk 0:01:12]}  Qc4 {[%clk 0:00:39]} 29. Qf4 {[%clk 0:01:05]}  Bxe4 {[%clk 0:00:31]} 30. g4 {[%clk 0:00:59]}  Bc6 {[%clk 0:00:20]} 31. Qe5 {[%clk 0:00:54]}  Nd7 {[%clk 0:00:18]} 32. Qe3 {[%clk 0:00:53]}  Qc5 {[%clk 0:00:18]} 33. Qe2 {[%clk 0:00:53]}  Qe5+ {[%clk 0:00:17]} 34. Qxe5 {[%clk 0:00:53]}  Nxe5 {[%clk 0:00:18]} 35. Kg3 {[%clk 0:00:54]}  f5 {[%clk 0:00:18]} 36. g5 {[%clk 0:00:53]}  Rxg5+ {[%clk 0:00:17]} 37. Kf4 {[%clk 0:00:54]}  Nf7 {[%clk 0:00:17]} 38. Ne2 {[%clk 0:00:54]}  e5+ {[%clk 0:00:18]} 39. Ke3 {[%clk 0:00:55]}  f4+ {[%clk 0:00:18]} 40. Kf2 {[%clk 0:00:55]}  Rg2+ {[%clk 0:00:18]} 41. Kf1 {[%clk 0:00:55]}  f3 {[%clk 0:00:18]} 42. Nc3 {[%clk 0:00:54]}  Rxc2 {[%clk 0:00:18]} 43. Nd1 {[%clk 0:00:55]}  Re2 {[%clk 0:00:14]} 44. Nc3 {[%clk 0:00:54]}  Rxb2 {[%clk 0:00:13]} 45. a4 {[%clk 0:00:55]}  bxa4 {[%clk 0:00:13]} 46. h4 {[%clk 0:00:55]}  a3 {[%clk 0:00:12]} 47. h5 {[%clk 0:00:56]}  a2 {[%clk 0:00:13]} 48. Nxa2 {[%clk 0:00:56]}  Rxa2 {[%clk 0:00:13]} 49. h6 {[%clk 0:00:56]}  Nxh6 {[%clk 0:00:13]} 50. Ke1 {[%clk 0:00:56]}  Be8 {[%clk 0:00:14]} 51. Kf1 {[%clk 0:00:56]}  Nf7 {[%clk 0:00:14]} 52. Ke1 {[%clk 0:00:57]}  Nh8 {[%clk 0:00:15]} 53. Kf1 {[%clk 0:00:58]}  e4 {[%clk 0:00:15]} 54. Ke1 {[%clk 0:00:59]}  Re2+ {[%clk 0:00:16]} 55. Kf1 {[%clk 0:00:59]}  a5 {[%clk 0:00:16]} 56. Kg1 {[%clk 0:01:00]}  a4 {[%clk 0:00:17]} 57. Kf1 {[%clk 0:01:01]}  a3 {[%clk 0:00:18]} 58. Kg1 {[%clk 0:01:02]}  a2 {[%clk 0:00:18]} 59. Kf1 {[%clk 0:01:03]}  a1=Q# {[%clk 0:00:19]} 0-1


[Site "https://www.chess.com"]

[Event "Titled Tuesday Blitz June 21 Early 2022"]
[White "Priyanka Nutakki"]
[Black "Stribuk, Artiom"]
[WhiteFideId "25049615"]
[BlackFideId "13515659"]
[WhiteElo "1912"]
[BlackElo "2259"]
[Result "0-1"]
[Round "02"]
[TimeControl "180+1"]
[Date "2022.06.21"]
[WhiteClock "0:00:11"]
[BlackClock "0:00:12"]

1. d4 {[%clk 0:03:00]}  Nf6 {[%clk 0:02:58]} 2. c4 {[%clk 0:03:00]}  g6 {[%clk 0:02:58]} 3. Nc3 {[%clk 0:03:00]}  d5 {[%clk 0:02:59]} 4. cxd5 {[%clk 0:02:59]}  Nxd5 {[%clk 0:03:00]} 5. Bd2 {[%clk 0:02:59]}  Bg7 {[%clk 0:02:59]} 6. e4 {[%clk 0:02:59]}  Nxc3 {[%clk 0:02:57]} 7. Bxc3 {[%clk 0:03:00]}  O-O {[%clk 0:02:57]} 8. Be2 {[%clk 0:02:55]}  c5 {[%clk 0:02:50]} 9. d5 {[%clk 0:02:55]}  Bxc3+ {[%clk 0:02:48]} 10. bxc3 {[%clk 0:02:56]}  e6 {[%clk 0:02:49]} 11. Nf3 {[%clk 0:02:53]}  exd5 {[%clk 0:02:46]} 12. exd5 {[%clk 0:02:54]}  Bf5 {[%clk 0:02:30]} 13. O-O {[%clk 0:02:51]}  Nd7 {[%clk 0:02:27]} 14. c4 {[%clk 0:02:44]}  Re8 {[%clk 0:02:23]} 15. h3 {[%clk 0:02:40]}  Qf6 {[%clk 0:02:12]} 16. Bd3 {[%clk 0:02:29]}  Re7 {[%clk 0:02:02]} 17. Rb1 {[%clk 0:02:24]}  b6 {[%clk 0:01:59]} 18. Qc2 {[%clk 0:02:20]}  Bxh3 {[%clk 0:01:56]} 19. d6 {[%clk 0:01:59]}  Re6 {[%clk 0:01:53]} 20. Be4 {[%clk 0:01:53]}  Rae8 {[%clk 0:01:43]} 21. Bd5 {[%clk 0:01:50]}  Bf5 {[%clk 0:01:37]} 22. Qa4 {[%clk 0:01:42]}  Bxb1 {[%clk 0:01:17]} 23. Qxd7 {[%clk 0:01:27]}  Rd8 {[%clk 0:01:13]} 24. Qxa7 {[%clk 0:01:12]}  Bd3 {[%clk 0:00:53]} 25. Bxe6 {[%clk 0:00:50]}  Bxf1 {[%clk 0:00:44]} 26. Bd5 {[%clk 0:00:47]}  Be2 {[%clk 0:00:42]} 27. Ng5 {[%clk 0:00:15]}  Qxg5 {[%clk 0:00:25]} 28. Qxf7+ {[%clk 0:00:13]}  Kh8 {[%clk 0:00:26]} 29. d7 {[%clk 0:00:13]}  Qc1+ {[%clk 0:00:26]} 30. Kh2 {[%clk 0:00:14]}  Qh6+ {[%clk 0:00:26]} 31. Kg1 {[%clk 0:00:14]}  Qf8 {[%clk 0:00:20]} 32. Qe6 {[%clk 0:00:14]}  h6 {[%clk 0:00:17]} 33. Qe5+ {[%clk 0:00:12]}  Kh7 {[%clk 0:00:15]} 34. Qxe2 {[%clk 0:00:12]}  Rxd7 {[%clk 0:00:15]} 35. Qe6 {[%clk 0:00:12]}  Rd6 {[%clk 0:00:15]} 36. Qe5 {[%clk 0:00:12]}  Qf6 {[%clk 0:00:14]} 37. Qe8 {[%clk 0:00:12]}  Rd8 {[%clk 0:00:14]} 38. Qe4 {[%clk 0:00:10]}  Qa1+ {[%clk 0:00:13]} 39. Kh2 {[%clk 0:00:09]}  Qf6 {[%clk 0:00:14]} 40. Kg1 {[%clk 0:00:08]}  Kg7 {[%clk 0:00:15]} 41. Qe2 {[%clk 0:00:05]}  Qa1+ {[%clk 0:00:15]} 42. Kh2 {[%clk 0:00:05]}  Qf6 {[%clk 0:00:16]} 43. Kg1 {[%clk 0:00:05]}  h5 {[%clk 0:00:16]} 44. a4 {[%clk 0:00:03]}  Rd7 {[%clk 0:00:12]} 45. Qe4 {[%clk 0:00:01]}  Re7 {[%clk 0:00:12]} 46. Qd3 {[%clk 0:00:02]}  Re1+ {[%clk 0:00:11]} 47. Kh2 {[%clk 0:00:03]}  Qf4+ {[%clk 0:00:10]} 48. Qg3 {[%clk 0:00:03]}  Qxg3+ {[%clk 0:00:10]} 49. Kxg3 {[%clk 0:00:04]}  Ra1 {[%clk 0:00:11]} 50. Bc6 {[%clk 0:00:04]}  Kf6 {[%clk 0:00:11]} 51. Bb5 {[%clk 0:00:05]}  g5 {[%clk 0:00:11]} 52. Kf3 {[%clk 0:00:05]}  Ra3+ {[%clk 0:00:12]} 53. Ke2 {[%clk 0:00:05]}  Ke5 {[%clk 0:00:11]} 54. g3 {[%clk 0:00:04]}  h4 {[%clk 0:00:12]} 55. gxh4 {[%clk 0:00:04]}  gxh4 {[%clk 0:00:13]} 56. Kf1 {[%clk 0:00:05]}  Kf4 {[%clk 0:00:13]} 57. Kg2 {[%clk 0:00:05]}  Rd3 {[%clk 0:00:13]} 58. Kh2 {[%clk 0:00:05]}  Rc3 {[%clk 0:00:14]} 59. Kg2 {[%clk 0:00:05]}  Kg4 {[%clk 0:00:13]} 60. Kh2 {[%clk 0:00:05]}  Kf3 {[%clk 0:00:14]} 61. Kh3 {[%clk 0:00:05]}  Kxf2+ {[%clk 0:00:13]} 62. Kxh4 {[%clk 0:00:06]}  Ke3 {[%clk 0:00:14]} 63. Kg4 {[%clk 0:00:07]}  Kd4 {[%clk 0:00:14]} 64. Kf5 {[%clk 0:00:07]}  Rxc4 {[%clk 0:00:12]} 65. Ke6 {[%clk 0:00:08]}  Rb4 {[%clk 0:00:09]} 66. Kd6 {[%clk 0:00:08]}  c4 {[%clk 0:00:09]} 67. Kc6 {[%clk 0:00:08]}  c3 {[%clk 0:00:10]} 68. Kxb6 {[%clk 0:00:09]}  c2 {[%clk 0:00:11]} 69. a5 {[%clk 0:00:10]}  c1=Q {[%clk 0:00:11]} 70. a6 {[%clk 0:00:11]}  Qc5+ {[%clk 0:00:11]} 71. Kb7 {[%clk 0:00:11]}  Qxb5+ {[%clk 0:00:12]} 0-1


[Site "https://www.chess.com"]